[Event "Titled Tuesday Blitz January 17 Late 2023"]
[White "Vlassov, Nikolai"]
[Black "Remizov, Yaroslav"]
[WhiteFideId "4103360"]
[BlackFideId "34134015"]
[WhiteElo "2283"]
[BlackElo "2421"]
[Result "0-1"]
[Round "08"]
[TimeControl "180+2"]
[Date "2023.01.17"]
[WhiteClock "0:00:06"]
[BlackClock "0:00:33"]

1. e4 {[%clk 0:03:00]}  c6 {[%clk 0:02:59]} 2. d4 {[%clk 0:02:58]}  d5 {[%clk 0:03:00]} 3. e5 {[%clk 0:02:48]}  c5 {[%clk 0:02:59]} 4. dxc5 {[%clk 0:02:47]}  e6 {[%clk 0:03:00]} 5. Nf3 {[%clk 0:02:47]}  Bxc5 {[%clk 0:02:59]} 6. a3 {[%clk 0:02:47]}  f6 {[%clk 0:02:59]} 7. Bd3 {[%clk 0:02:44]}  Nd7 {[%clk 0:02:58]} 8. b4 {[%clk 0:02:41]}  Be7 {[%clk 0:02:57]} 9. Bb2 {[%clk 0:02:42]}  a5 {[%clk 0:02:58]} 10. b5 {[%clk 0:02:38]}  Nh6 {[%clk 0:02:58]} 11. O-O {[%clk 0:02:36]}  Nf7 {[%clk 0:02:58]} 12. exf6 {[%clk 0:02:32]}  Bxf6 {[%clk 0:02:58]} 13. Bxf6 {[%clk 0:02:31]}  Qxf6 {[%clk 0:02:59]} 14. Nbd2 {[%clk 0:02:30]}  e5 {[%clk 0:03:00]} 15. Re1 {[%clk 0:02:20]}  O-O {[%clk 0:02:59]} 16. c4 {[%clk 0:01:49]}  e4 {[%clk 0:02:59]} 17. Nxe4 {[%clk 0:01:48]}  dxe4 {[%clk 0:02:54]} 18. Bxe4 {[%clk 0:01:49]}  Nc5 {[%clk 0:02:50]} 19. Bd5 {[%clk 0:01:49]}  Bg4 {[%clk 0:02:47]} 20. Re3 {[%clk 0:01:45]}  Rfe8 {[%clk 0:02:38]} 21. Qd4 {[%clk 0:01:30]}  Rxe3 {[%clk 0:02:29]} 22. Qxf6 {[%clk 0:01:27]}  gxf6 {[%clk 0:02:26]} 23. fxe3 {[%clk 0:01:27]}  Bxf3 {[%clk 0:02:26]} 24. gxf3 {[%clk 0:01:27]}  Kf8 {[%clk 0:02:20]} 25. Kf2 {[%clk 0:01:23]}  Rc8 {[%clk 0:02:10]} 26. Rg1 {[%clk 0:01:21]}  b6 {[%clk 0:02:05]} 27. Rg4 {[%clk 0:01:18]}  Nd3+ {[%clk 0:02:05]} 28. Ke2 {[%clk 0:01:16]}  Nde5 {[%clk 0:02:05]} 29. Rh4 {[%clk 0:01:16]}  Kg7 {[%clk 0:02:00]} 30. Rd4 {[%clk 0:01:04]}  Rc7 {[%clk 0:01:44]} 31. f4 {[%clk 0:01:00]}  Nd7 {[%clk 0:01:43]} 32. Kd3 {[%clk 0:00:50]}  Nc5+ {[%clk 0:01:42]} 33. Kc3 {[%clk 0:00:50]}  f5 {[%clk 0:01:42]} 34. Bxf7 {[%clk 0:00:36]}  Kxf7 {[%clk 0:01:41]} 35. Rd5 {[%clk 0:00:36]}  Ke6 {[%clk 0:01:22]} 36. Kd4 {[%clk 0:00:30]}  Ne4 {[%clk 0:01:12]} 37. Re5+ {[%clk 0:00:26]}  Kf6 {[%clk 0:01:12]} 38. Rd5 {[%clk 0:00:26]}  h5 {[%clk 0:00:57]} 39. h4 {[%clk 0:00:24]}  a4 {[%clk 0:00:53]} 40. Rd8 {[%clk 0:00:21]}  Ke6 {[%clk 0:00:49]} 41. Re8+ {[%clk 0:00:20]}  Kf7 {[%clk 0:00:48]} 42. Rd8 {[%clk 0:00:19]}  Nd2 {[%clk 0:00:46]} 43. Rd6 {[%clk 0:00:11]}  Nxc4 {[%clk 0:00:35]} 44. Rh6 {[%clk 0:00:11]}  Nxa3 {[%clk 0:00:33]} 45. Rh7+ {[%clk 0:00:10]}  Kg6 {[%clk 0:00:33]} 46. Rxc7 {[%clk 0:00:06]}  Nxb5+ {[%clk 0:00:33]} 0-1


[Site "https://www.chess.com"]

[Event "Titled Tuesday Blitz January 17 Late 2023"]
[White "Holt, Conrad"]
[Black "Injac, Teodora"]
[WhiteFideId "2034387"]
[BlackFideId "932400"]
[WhiteElo "2540"]
[BlackElo "2391"]
[Result "0-1"]
[Round "08"]
[TimeControl "180+2"]
[Date "2023.01.17"]
[WhiteClock "0:00:12"]
[BlackClock "0:00:14"]

1. d4 {[%clk 0:03:00]}  Nf6 {[%clk 0:03:00]} 2. c3 {[%clk 0:03:01]}  g6 {[%clk 0:02:58]} 3. Bf4 {[%clk 0:03:00]}  Bg7 {[%clk 0:02:59]} 4. e3 {[%clk 0:03:00]}  d6 {[%clk 0:02:58]} 5. Nd2 {[%clk 0:02:58]}  Nbd7 {[%clk 0:02:58]} 6. h3 {[%clk 0:02:57]}  e5 {[%clk 0:02:57]} 7. Bh2 {[%clk 0:02:55]}  O-O {[%clk 0:02:57]} 8. Ngf3 {[%clk 0:02:56]}  Qe7 {[%clk 0:02:57]} 9. Qc2 {[%clk 0:02:52]}  Re8 {[%clk 0:02:54]} 10. Be2 {[%clk 0:02:49]}  e4 {[%clk 0:02:49]} 11. Nh4 {[%clk 0:02:48]}  Nd5 {[%clk 0:02:31]} 12. g3 {[%clk 0:02:48]}  f5 {[%clk 0:02:29]} 13. Ng2 {[%clk 0:02:47]}  N7f6 {[%clk 0:02:20]} 14. a3 {[%clk 0:02:41]}  c5 {[%clk 0:02:20]} 15. c4 {[%clk 0:02:38]}  cxd4 {[%clk 0:02:11]} 16. cxd5 {[%clk 0:02:38]}  d3 {[%clk 0:02:11]} 17. Bxd3 {[%clk 0:02:38]}  exd3 {[%clk 0:02:11]} 18. Qxd3 {[%clk 0:02:38]}  Bd7 {[%clk 0:01:50]} 19. O-O {[%clk 0:02:36]}  Rac8 {[%clk 0:01:49]} 20. Qb3 {[%clk 0:02:22]}  b5 {[%clk 0:01:39]} 21. Nf4 {[%clk 0:02:16]}  g5 {[%clk 0:01:36]} 22. Ne2 {[%clk 0:02:10]}  Qf7 {[%clk 0:01:28]} 23. Nf3 {[%clk 0:02:00]}  h6 {[%clk 0:01:18]} 24. Rad1 {[%clk 0:01:57]}  Rc5 {[%clk 0:01:12]} 25. Nc3 {[%clk 0:01:42]}  Ne4 {[%clk 0:00:59]} 26. Ne2 {[%clk 0:01:33]}  a5 {[%clk 0:00:49]} 27. Ne1 {[%clk 0:01:12]}  a4 {[%clk 0:00:49]} 28. Qa2 {[%clk 0:01:11]}  Bc8 {[%clk 0:00:45]} 29. Nd3 {[%clk 0:01:08]}  Rc2 {[%clk 0:00:42]} 30. Rfe1 {[%clk 0:01:07]}  Bb7 {[%clk 0:00:39]} 31. Nb4 {[%clk 0:01:03]}  Rxb2 {[%clk 0:00:38]} 32. Qa1 {[%clk 0:00:55]}  Rxb4 {[%clk 0:00:37]} 33. Qc1 {[%clk 0:00:49]}  Rc4 {[%clk 0:00:37]} 34. Qb1 {[%clk 0:00:49]}  Nc3 {[%clk 0:00:34]} 35. Nxc3 {[%clk 0:00:48]}  Bxc3 {[%clk 0:00:35]} 36. Qxb5 {[%clk 0:00:47]}  Rc5 {[%clk 0:00:34]} 37. Qxa4 {[%clk 0:00:45]}  Bxe1 {[%clk 0:00:33]} 38. Rxe1 {[%clk 0:00:45]}  Ra8 {[%clk 0:00:31]} 39. Qb4 {[%clk 0:00:40]}  Qxd5 {[%clk 0:00:31]} 40. e4 {[%clk 0:00:40]}  fxe4 {[%clk 0:00:31]} 41. Re3 {[%clk 0:00:36]}  Qc6 {[%clk 0:00:26]} 42. g4 {[%clk 0:00:33]}  Rc1+ {[%clk 0:00:25]} 43. Kg2 {[%clk 0:00:34]}  Rc4 {[%clk 0:00:25]} 44. Qb3 {[%clk 0:00:30]}  d5 {[%clk 0:00:22]} 45. Be5 {[%clk 0:00:27]}  Kh7 {[%clk 0:00:20]} 46. Ba1 {[%clk 0:00:23]}  Rf8 {[%clk 0:00:21]} 47. Qb2 {[%clk 0:00:22]}  d4 {[%clk 0:00:20]} 48. Kh2 {[%clk 0:00:20]}  Rc2 {[%clk 0:00:17]} 49. Qxd4 {[%clk 0:00:18]}  Rcxf2+ {[%clk 0:00:17]} 50. Kg1 {[%clk 0:00:14]}  Rf1+ {[%clk 0:00:17]} 51. Kg2 {[%clk 0:00:14]}  Qc2+ {[%clk 0:00:14]} 52. Kg3 {[%clk 0:00:13]}  R8f3+ {[%clk 0:00:14]} 53. Rxf3 {[%clk 0:00:12]}  Rxf3# {[%clk 0:00:14]} 0-1


[Site "https://www.chess.com"]

[Event "Titled Tuesday Blitz January 17 Late 2023"]
[White "Quispe Arteaga, Gabriel"]
[Black "Klose, Eli"]
[WhiteFideId "32059809"]
[BlackFideId "16242955"]
[WhiteElo "2381"]
[BlackElo "1519"]
[Result "1-0"]
[Round "08"]
[TimeControl "180+2"]
[Date "2023.01.17"]
[WhiteClock "0:00:33"]
[BlackClock "0:00:06"]

1. c4 {[%clk 0:03:00]}  Nf6 {[%clk 0:02:57]} 2. Nc3 {[%clk 0:03:01]}  c5 {[%clk 0:02:56]} 3. Nf3 {[%clk 0:03:01]}  Nc6 {[%clk 0:02:56]} 4. d4 {[%clk 0:03:02]}  cxd4 {[%clk 0:02:56]} 5. Nxd4 {[%clk 0:03:03]}  d6 {[%clk 0:02:57]} 6. g3 {[%clk 0:03:03]}  g6 {[%clk 0:02:57]} 7. Bg2 {[%clk 0:03:04]}  Bd7 {[%clk 0:02:58]} 8. O-O {[%clk 0:03:04]}  Bg7 {[%clk 0:02:58]} 9. h3 {[%clk 0:02:59]}  O-O {[%clk 0:02:57]} 10. Be3 {[%clk 0:03:00]}  Qa5 {[%clk 0:02:57]} 11. Qd2 {[%clk 0:02:59]}  Qh5 {[%clk 0:02:56]} 12. h4 {[%clk 0:02:45]}  Ng4 {[%clk 0:02:41]} 13. Nxc6 {[%clk 0:02:45]}  Bxc6 {[%clk 0:02:35]} 14. Bd4 {[%clk 0:02:46]}  Bxg2 {[%clk 0:02:29]} 15. Kxg2 {[%clk 0:02:44]}  Nf6 {[%clk 0:01:50]} 16. Rac1 {[%clk 0:02:33]}  Rfc8 {[%clk 0:01:46]} 17. Bxf6 {[%clk 0:02:33]}  Bxf6 {[%clk 0:01:46]} 18. Nd5 {[%clk 0:02:34]}  Qe5 {[%clk 0:01:37]} 19. b3 {[%clk 0:02:34]}  Rc6 {[%clk 0:01:35]} 20. Qd3 {[%clk 0:02:34]}  Rac8 {[%clk 0:01:33]} 21. f4 {[%clk 0:02:34]}  Qe6 {[%clk 0:01:21]} 22. f5 {[%clk 0:02:35]}  gxf5 {[%clk 0:01:22]} 23. Rxf5 {[%clk 0:02:32]}  Be5 {[%clk 0:01:22]} 24. Rh5 {[%clk 0:01:33]}  h6 {[%clk 0:01:19]} 25. Rf1 {[%clk 0:01:33]}  Re8 {[%clk 0:01:12]} 26. Qe3 {[%clk 0:01:27]}  Kg7 {[%clk 0:01:09]} 27. Rhf5 {[%clk 0:01:23]}  Rf8 {[%clk 0:01:03]} 28. Qxa7 {[%clk 0:01:19]}  Ra6 {[%clk 0:00:55]} 29. Qxb7 {[%clk 0:01:17]}  Rxa2 {[%clk 0:00:56]} 30. Qxe7 {[%clk 0:00:41]}  Rxe2+ {[%clk 0:00:51]} 31. R1f2 {[%clk 0:00:42]}  Qxf5 {[%clk 0:00:37]} 32. Rxe2 {[%clk 0:00:35]}  Qg4 {[%clk 0:00:21]} 33. Rxe5 {[%clk 0:00:33]}  dxe5 {[%clk 0:00:22]} 34. Qxe5+ {[%clk 0:00:34]}  f6 {[%clk 0:00:22]} 35. Qe7+ {[%clk 0:00:34]}  Rf7 {[%clk 0:00:23]} 36. Qe3 {[%clk 0:00:34]}  Qf5 {[%clk 0:00:14]} 37. Nf4 {[%clk 0:00:34]}  Rd7 {[%clk 0:00:12]} 38. Nd5 {[%clk 0:00:34]}  Qc2+ {[%clk 0:00:09]} 39. Kh3 {[%clk 0:00:33]}  Qf5+ {[%clk 0:00:09]} 40. g4 {[%clk 0:00:34]}  Qf1+ {[%clk 0:00:09]} 41. Kg3 {[%clk 0:00:35]}  Rf7 {[%clk 0:00:05]} 42. Nf4 {[%clk 0:00:34]}  f5 {[%clk 0:00:05]} 43. g5 {[%clk 0:00:32]}  hxg5 {[%clk 0:00:05]} 44. hxg5 {[%clk 0:00:33]}  Kg8 {[%clk 0:00:05]} 45. g6 {[%clk 0:00:33]}  Rf8 {[%clk 0:00:05]} 46. Qe6+ {[%clk 0:00:32]}  Kg7 {[%clk 0:00:06]} 47. Qe7+ {[%clk 0:00:33]}  Kg8 {[%clk 0:00:06]} 48. Qh7# {[%clk 0:00:33]} 1-0


[Site "https://www.chess.com"]

[Event "Titled Tuesday Blitz January 17 Late 2023"]
[White "Kavutskiy, Konstantin"]
[Black "Pakleza, Zbigniew"]
[WhiteFideId "2026384"]
[BlackFideId "1119290"]
[WhiteElo "2414"]
[BlackElo "2494"]
[Result "0-1"]
[Round "08"]
[TimeControl "180+2"]
[Date "2023.01.17"]
[WhiteClock "0:00:09"]
[BlackClock "0:00:11"]

1. d4 {[%clk 0:03:00]}  d6 {[%clk 0:02:59]} 2. e4 {[%clk 0:02:59]}  Nf6 {[%clk 0:02:57]} 3. Nc3 {[%clk 0:02:59]}  c6 {[%clk 0:02:57]} 4. Nf3 {[%clk 0:02:45]}  Bg4 {[%clk 0:02:56]} 5. Be2 {[%clk 0:02:39]}  e6 {[%clk 0:02:56]} 6. O-O {[%clk 0:02:38]}  d5 {[%clk 0:02:56]} 7. e5 {[%clk 0:02:35]}  Nfd7 {[%clk 0:02:56]} 8. a4 {[%clk 0:02:34]}  c5 {[%clk 0:02:55]} 9. Bg5 {[%clk 0:02:20]}  Qa5 {[%clk 0:02:20]} 10. Nd2 {[%clk 0:02:08]}  Bxe2 {[%clk 0:02:16]} 11. Nxe2 {[%clk 0:02:06]}  Nc6 {[%clk 0:02:06]} 12. Nb3 {[%clk 0:02:01]}  Qc7 {[%clk 0:02:03]} 13. c3 {[%clk 0:01:59]}  Be7 {[%clk 0:01:48]} 14. Qd2 {[%clk 0:01:57]}  O-O {[%clk 0:01:26]} 15. Ng3 {[%clk 0:01:45]}  Rfc8 {[%clk 0:01:10]} 16. Bxe7 {[%clk 0:01:41]}  Nxe7 {[%clk 0:01:10]} 17. Nh5 {[%clk 0:01:41]}  cxd4 {[%clk 0:01:02]} 18. cxd4 {[%clk 0:01:40]}  Qc2 {[%clk 0:00:57]} 19. Qxc2 {[%clk 0:01:12]}  Rxc2 {[%clk 0:00:58]} 20. Na5 {[%clk 0:01:12]}  Nc6 {[%clk 0:00:38]} 21. Nxb7 {[%clk 0:00:52]}  Nxd4 {[%clk 0:00:35]} 22. Rfe1 {[%clk 0:00:47]}  Rxb2 {[%clk 0:00:32]} 23. Rab1 {[%clk 0:00:47]}  Rxb1 {[%clk 0:00:30]} 24. Rxb1 {[%clk 0:00:48]}  Nxe5 {[%clk 0:00:30]} 25. Nd6 {[%clk 0:00:46]}  Nc4 {[%clk 0:00:27]} 26. Nxc4 {[%clk 0:00:23]}  dxc4 {[%clk 0:00:28]} 27. Nf4 {[%clk 0:00:23]}  g5 {[%clk 0:00:17]} 28. Nh5 {[%clk 0:00:20]}  c3 {[%clk 0:00:14]} 29. Kf1 {[%clk 0:00:20]}  c2 {[%clk 0:00:13]} 30. Rc1 {[%clk 0:00:21]}  Rc8 {[%clk 0:00:13]} 31. Nf6+ {[%clk 0:00:18]}  Kg7 {[%clk 0:00:12]} 32. Nh5+ {[%clk 0:00:09]}  Kg6 {[%clk 0:00:11]} 0-1


[Site "https://www.chess.com"]

[Event "Titled Tuesday Blitz January 17 Late 2023"]
[White "Sebag, Marie"]
[Black "Kobalia, Mikhail"]
[WhiteFideId "617822"]
[BlackFideId "4119150"]
[WhiteElo "2430"]
[BlackElo "2578"]
[Result "1-0"]
[Round "08"]
[TimeControl "180+2"]
[Date "2023.01.17"]
[WhiteClock "0:00:39"]
[BlackClock "0:00:01"]

1. e4 {[%clk 0:02:58]}  c5 {[%clk 0:02:55]} 2. Nf3 {[%clk 0:02:54]}  e6 {[%clk 0:02:55]} 3. d4 {[%clk 0:02:52]}  cxd4 {[%clk 0:02:55]} 4. Nxd4 {[%clk 0:02:52]}  Nc6 {[%clk 0:02:56]} 5. Nc3 {[%clk 0:02:51]}  a6 {[%clk 0:02:56]} 6. Be3 {[%clk 0:02:51]}  Nf6 {[%clk 0:02:55]} 7. Be2 {[%clk 0:02:51]}  d6 {[%clk 0:02:54]} 8. O-O {[%clk 0:02:51]}  Bd7 {[%clk 0:02:54]} 9. f4 {[%clk 0:02:50]}  Nxd4 {[%clk 0:02:54]} 10. Bxd4 {[%clk 0:02:50]}  Bc6 {[%clk 0:02:54]} 11. Bd3 {[%clk 0:02:49]}  Be7 {[%clk 0:02:54]} 12. Kh1 {[%clk 0:02:49]}  O-O {[%clk 0:02:54]} 13. Qe1 {[%clk 0:02:45]}  b5 {[%clk 0:02:54]} 14. Qg3 {[%clk 0:02:45]}  Qb8 {[%clk 0:02:52]} 15. Rae1 {[%clk 0:02:43]}  b4 {[%clk 0:02:52]} 16. Nd1 {[%clk 0:02:41]}  Qb7 {[%clk 0:02:26]} 17. Nf2 {[%clk 0:02:39]}  Rfe8 {[%clk 0:02:22]} 18. e5 {[%clk 0:02:18]}  Nh5 {[%clk 0:02:08]} 19. Qh3 {[%clk 0:02:11]}  g6 {[%clk 0:02:06]} 20. Ng4 {[%clk 0:02:07]}  dxe5 {[%clk 0:01:46]} 21. fxe5 {[%clk 0:01:59]}  Bg5 {[%clk 0:01:43]} 22. Be3 {[%clk 0:01:46]}  Qe7 {[%clk 0:01:07]} 23. Nf6+ {[%clk 0:01:21]}  Bxf6 {[%clk 0:01:05]} 24. exf6 {[%clk 0:01:19]}  Qd6 {[%clk 0:01:03]} 25. Be2 {[%clk 0:01:10]}  Qd5 {[%clk 0:00:56]} 26. Bf3 {[%clk 0:01:04]}  Qb5 {[%clk 0:00:56]} 27. a4 {[%clk 0:00:58]}  bxa3 {[%clk 0:00:54]} 28. c4 {[%clk 0:00:58]}  Qxc4 {[%clk 0:00:12]} 29. Rc1 {[%clk 0:00:52]}  Qxf1+ {[%clk 0:00:04]} 30. Rxf1 {[%clk 0:00:50]}  Bxf3 {[%clk 0:00:05]} 31. Qxf3 {[%clk 0:00:46]}  axb2 {[%clk 0:00:05]} 32. g4 {[%clk 0:00:45]}  Rab8 {[%clk 0:00:05]} 33. Rb1 {[%clk 0:00:43]}  Rec8 {[%clk 0:00:01]} 34. gxh5 {[%clk 0:00:39]}  Rc2 {[%clk 0:00:01]} 35. Qf4 {[%clk 0:00:39]} 1-0


[Site "https://www.chess.com"]

[Event "Titled Tuesday Blitz January 17 Late 2023"]
[White "Sowa, Ryan"]
[Black "Sokolovsky, Yahli"]
[WhiteFideId "30901693"]
[BlackFideId "2820242"]
[WhiteElo "2073"]
[BlackElo "2461"]
[Result "1-0"]
[Round "08"]
[TimeControl "180+2"]
[Date "2023.01.17"]
[WhiteClock "0:00:24"]
[BlackClock "0:00:03"]

1. Nf3 {[%clk 0:03:00]}  d5 {[%clk 0:02:59]} 2. b3 {[%clk 0:03:01]}  Bg4 {[%clk 0:02:58]} 3. e3 {[%clk 0:02:54]}  e5 {[%clk 0:02:57]} 4. h3 {[%clk 0:02:52]}  Bxf3 {[%clk 0:02:56]} 5. Qxf3 {[%clk 0:02:53]}  Nf6 {[%clk 0:02:55]} 6. d4 {[%clk 0:02:50]}  e4 {[%clk 0:02:55]} 7. Qd1 {[%clk 0:02:50]}  Bd6 {[%clk 0:02:56]} 8. c4 {[%clk 0:02:50]}  c6 {[%clk 0:02:57]} 9. Qd2 {[%clk 0:02:46]}  O-O {[%clk 0:02:53]} 10. Ba3 {[%clk 0:02:46]}  Bxa3 {[%clk 0:02:37]} 11. Nxa3 {[%clk 0:02:47]}  Ne8 {[%clk 0:02:23]} 12. Be2 {[%clk 0:02:42]}  f5 {[%clk 0:02:23]} 13. O-O-O {[%clk 0:02:35]}  Nd7 {[%clk 0:02:20]} 14. g3 {[%clk 0:02:32]}  a5 {[%clk 0:02:17]} 15. Kb2 {[%clk 0:02:29]}  Qe7 {[%clk 0:02:13]} 16. cxd5 {[%clk 0:02:21]}  cxd5 {[%clk 0:02:13]} 17. Rc1 {[%clk 0:02:20]}  Nb8 {[%clk 0:02:08]} 18. Rc5 {[%clk 0:02:13]}  Nf6 {[%clk 0:02:02]} 19. Rxa5 {[%clk 0:02:00]}  Nc6 {[%clk 0:02:01]} 20. Rxa8 {[%clk 0:01:57]}  Rxa8 {[%clk 0:02:02]} 21. Nc2 {[%clk 0:01:57]}  h5 {[%clk 0:01:40]} 22. h4 {[%clk 0:01:57]}  g6 {[%clk 0:01:39]} 23. Qc3 {[%clk 0:01:54]}  Kh7 {[%clk 0:01:37]} 24. Qc5 {[%clk 0:01:37]}  Qc7 {[%clk 0:01:17]} 25. Rc1 {[%clk 0:00:59]}  Ra5 {[%clk 0:01:10]} 26. Qc3 {[%clk 0:00:59]}  Qd6 {[%clk 0:01:08]} 27. a4 {[%clk 0:00:52]}  Ra8 {[%clk 0:00:36]} 28. Qc5 {[%clk 0:00:47]}  Qe6 {[%clk 0:00:31]} 29. Nb4 {[%clk 0:00:42]}  Ne7 {[%clk 0:00:23]} 30. Qc7 {[%clk 0:00:39]}  b6 {[%clk 0:00:08]} 31. Nc6 {[%clk 0:00:36]}  Re8 {[%clk 0:00:09]} 32. Bb5 {[%clk 0:00:31]}  Ng8 {[%clk 0:00:06]} 33. Nd8 {[%clk 0:00:27]}  Qf7 {[%clk 0:00:03]} 34. Bxe8 {[%clk 0:00:26]}  Qxe8 {[%clk 0:00:03]} 35. Nc6 {[%clk 0:00:26]}  Qf7 {[%clk 0:00:02]} 36. Nxe7 {[%clk 0:00:26]}  Nxe7 {[%clk 0:00:03]} 37. Qd7 {[%clk 0:00:22]}  Kg7 {[%clk 0:00:03]} 38. Rc7 {[%clk 0:00:21]}  Kf8 {[%clk 0:00:02]} 39. Qd8+ {[%clk 0:00:21]}  Qe8 {[%clk 0:00:02]} 40. Qxe8+ {[%clk 0:00:21]}  Kxe8 {[%clk 0:00:03]} 41. Rb7 {[%clk 0:00:22]}  f4 {[%clk 0:00:02]} 42. Rxe7+ {[%clk 0:00:19]}  Kxe7 {[%clk 0:00:02]} 43. exf4 {[%clk 0:00:20]}  Kd6 {[%clk 0:00:03]} 44. b4 {[%clk 0:00:20]}  Kc6 {[%clk 0:00:03]} 45. Kc3 {[%clk 0:00:20]}  Kd6 {[%clk 0:00:04]} 46. Kd2 {[%clk 0:00:20]}  Ke6 {[%clk 0:00:04]} 47. Ke3 {[%clk 0:00:21]}  Kd6 {[%clk 0:00:03]} 48. f3 {[%clk 0:00:22]}  exf3 {[%clk 0:00:03]} 49. Kxf3 {[%clk 0:00:23]}  Ke6 {[%clk 0:00:04]} 50. g4 {[%clk 0:00:23]}  Kf6 {[%clk 0:00:03]} 51. a5 {[%clk 0:00:23]}  bxa5 {[%clk 0:00:03]} 52. bxa5 {[%clk 0:00:24]} 1-0


[Site "https://www.chess.com"]

[Event "Titled Tuesday Blitz January 17 Late 2023"]
[White "Leitao, Rafael"]
[Black "Jovic, Stanoje"]
[WhiteFideId "2101246"]
[BlackFideId "905020"]
[WhiteElo "2592"]
[BlackElo "2075"]
[Result "1-0"]
[Round "08"]
[TimeControl "180+2"]
[Date "2023.01.17"]
[WhiteClock "0:00:48"]
[BlackClock "0:00:25"]

1. c4 {[%clk 0:03:00]}  e5 {[%clk 0:02:59]} 2. Nc3 {[%clk 0:03:00]}  Nf6 {[%clk 0:02:58]} 3. Nf3 {[%clk 0:02:58]}  Nc6 {[%clk 0:02:58]} 4. e4 {[%clk 0:02:58]}  Bc5 {[%clk 0:02:56]} 5. Nxe5 {[%clk 0:02:56]}  Nxe5 {[%clk 0:02:53]} 6. d4 {[%clk 0:02:55]}  Bb4 {[%clk 0:02:53]} 7. dxe5 {[%clk 0:02:55]}  Nxe4 {[%clk 0:02:52]} 8. Qf3 {[%clk 0:02:55]}  d5 {[%clk 0:02:52]} 9. Be2 {[%clk 0:02:43]}  O-O {[%clk 0:02:39]} 10. O-O {[%clk 0:02:40]}  Bxc3 {[%clk 0:02:33]} 11. bxc3 {[%clk 0:02:40]}  f5 {[%clk 0:02:30]} 12. Rd1 {[%clk 0:02:28]}  c6 {[%clk 0:02:14]} 13. cxd5 {[%clk 0:02:24]}  cxd5 {[%clk 0:02:13]} 14. c4 {[%clk 0:02:23]}  Be6 {[%clk 0:02:00]} 15. cxd5 {[%clk 0:02:20]}  Bxd5 {[%clk 0:02:01]} 16. Qe3 {[%clk 0:01:33]}  Qa5 {[%clk 0:01:43]} 17. Bb2 {[%clk 0:01:08]}  Bc6 {[%clk 0:01:28]} 18. f3 {[%clk 0:01:00]}  Nc5 {[%clk 0:01:16]} 19. e6 {[%clk 0:01:00]}  Na4 {[%clk 0:00:45]} 20. e7 {[%clk 0:00:49]}  Rfe8 {[%clk 0:00:25]} 21. Bc4+ {[%clk 0:00:48]} 1-0


[Site "https://www.chess.com"]

[Event "Titled Tuesday Blitz January 17 Late 2023"]
[White "Al-Tarboush, Ward"]
[Black "Milikow, Yoav"]
[WhiteFideId "7601450"]
[BlackFideId "2822237"]
[WhiteElo "2256"]
[BlackElo "2394"]
[Result "1-0"]
[Round "08"]
[TimeControl "180+2"]
[Date "2023.01.17"]
[WhiteClock "0:00:48"]
[BlackClock "0:01:46"]

1. e4 {[%clk 0:03:00]}  g6 {[%clk 0:02:53]} 2. d4 {[%clk 0:02:59]}  Bg7 {[%clk 0:02:54]} 3. Nc3 {[%clk 0:02:59]}  d6 {[%clk 0:02:55]} 4. Be3 {[%clk 0:02:57]}  Nd7 {[%clk 0:02:56]} 5. h4 {[%clk 0:02:57]}  h6 {[%clk 0:02:55]} 6. Qd2 {[%clk 0:02:55]}  e6 {[%clk 0:02:56]} 7. f4 {[%clk 0:02:53]}  Ne7 {[%clk 0:02:55]} 8. g4 {[%clk 0:02:52]}  b6 {[%clk 0:02:54]} 9. h5 {[%clk 0:02:51]}  Bb7 {[%clk 0:02:53]} 10. hxg6 {[%clk 0:02:51]}  fxg6 {[%clk 0:02:54]} 11. O-O-O {[%clk 0:02:50]}  Nf8 {[%clk 0:02:53]} 12. Bg2 {[%clk 0:02:48]}  Qd7 {[%clk 0:02:46]} 13. e5 {[%clk 0:02:43]}  d5 {[%clk 0:02:45]} 14. Nge2 {[%clk 0:02:20]}  O-O-O {[%clk 0:02:32]} 15. Kb1 {[%clk 0:02:20]}  Kb8 {[%clk 0:02:31]} 16. Nc1 {[%clk 0:02:20]}  Qe8 {[%clk 0:02:29]} 17. Nd3 {[%clk 0:02:19]}  Qf7 {[%clk 0:02:29]} 18. a4 {[%clk 0:02:15]}  h5 {[%clk 0:02:27]} 19. a5 {[%clk 0:02:07]}  hxg4 {[%clk 0:02:24]} 20. axb6 {[%clk 0:02:05]}  axb6 {[%clk 0:02:23]} 21. Nb5 {[%clk 0:02:04]}  Ba6 {[%clk 0:02:18]} 22. Qb4 {[%clk 0:02:03]}  Nc8 {[%clk 0:02:15]} 23. Nc5 {[%clk 0:02:01]}  bxc5 {[%clk 0:02:11]} 24. dxc5 {[%clk 0:02:01]}  Ka8 {[%clk 0:02:01]} 25. Qa5 {[%clk 0:01:57]}  Kb7 {[%clk 0:02:01]} 26. c6+ {[%clk 0:01:57]}  Kxc6 {[%clk 0:02:01]} 27. Qxa6+ {[%clk 0:01:52]}  Kd7 {[%clk 0:02:01]} 28. Nxc7 {[%clk 0:01:33]}  Rxh1 {[%clk 0:02:00]} 29. Bxh1 {[%clk 0:01:33]}  Kxc7 {[%clk 0:02:00]} 30. Bb6+ {[%clk 0:01:33]}  Kd7 {[%clk 0:01:55]} 31. Qb5+ {[%clk 0:01:22]}  Ke7 {[%clk 0:01:53]} 32. Bc5+ {[%clk 0:01:22]}  Nd6 {[%clk 0:01:53]} 33. exd6+ {[%clk 0:00:50]}  Kf6 {[%clk 0:01:52]} 34. Bd4+ {[%clk 0:00:49]}  Kf5 {[%clk 0:01:46]} 35. Qd3+ {[%clk 0:00:48]}  Kxf4 {[%clk 0:01:46]} 1-0


[Site "https://www.chess.com"]

[Event "Titled Tuesday Blitz January 17 Late 2023"]
[White "Boyer, Mahel"]
[Black "Przybylski, Wojciech"]
[WhiteFideId "45102422"]
[BlackFideId "1117599"]
[WhiteElo "2489"]
[BlackElo "2321"]
[Result "1-0"]
[Round "08"]
[TimeControl "180+2"]
[Date "2023.01.17"]
[WhiteClock "0:00:42"]
[BlackClock "0:00:11"]

1. Nf3 {[%clk 0:03:00]}  Nf6 {[%clk 0:02:59]} 2. d3 {[%clk 0:03:00]}  d5 {[%clk 0:02:59]} 3. g3 {[%clk 0:03:00]}  Bg4 {[%clk 0:02:58]} 4. Bg2 {[%clk 0:03:01]}  c6 {[%clk 0:02:58]} 5. O-O {[%clk 0:03:01]}  Nbd7 {[%clk 0:02:58]} 6. Nbd2 {[%clk 0:03:01]}  e5 {[%clk 0:02:57]} 7. e4 {[%clk 0:03:01]}  dxe4 {[%clk 0:02:56]} 8. dxe4 {[%clk 0:03:02]}  Bc5 {[%clk 0:02:56]} 9. Nc4 {[%clk 0:03:00]}  O-O {[%clk 0:02:54]} 10. h3 {[%clk 0:03:00]}  Bxf3 {[%clk 0:02:54]} 11. Qxf3 {[%clk 0:03:01]}  b5 {[%clk 0:02:53]} 12. Ne3 {[%clk 0:03:02]}  Re8 {[%clk 0:02:52]} 13. a4 {[%clk 0:03:00]}  a6 {[%clk 0:02:49]} 14. Nf5 {[%clk 0:03:00]}  Re6 {[%clk 0:02:48]} 15. h4 {[%clk 0:02:59]}  Bf8 {[%clk 0:02:30]} 16. Bh3 {[%clk 0:02:42]}  Nc5 {[%clk 0:02:23]} 17. Rd1 {[%clk 0:02:38]}  Qb8 {[%clk 0:02:11]} 18. axb5 {[%clk 0:02:16]}  axb5 {[%clk 0:02:11]} 19. Rxa8 {[%clk 0:02:15]}  Qxa8 {[%clk 0:02:12]} 20. Nh6+ {[%clk 0:02:16]}  gxh6 {[%clk 0:02:01]} 21. Bxe6 {[%clk 0:02:13]}  Ncxe4 {[%clk 0:01:58]} 22. Bf5 {[%clk 0:02:11]}  Nd6 {[%clk 0:01:52]} 23. Bxh6 {[%clk 0:02:04]}  Nde8 {[%clk 0:00:41]} 24. Bg5 {[%clk 0:01:42]}  Bg7 {[%clk 0:00:36]} 25. Be4 {[%clk 0:01:26]}  Nxe4 {[%clk 0:00:24]} 26. Qxe4 {[%clk 0:01:27]}  Qc8 {[%clk 0:00:21]} 27. Rd8 {[%clk 0:01:07]}  Qe6 {[%clk 0:00:21]} 28. Qd3 {[%clk 0:01:06]}  f6 {[%clk 0:00:21]} 29. Be3 {[%clk 0:01:06]}  Kf7 {[%clk 0:00:15]} 30. Bc5 {[%clk 0:00:41]}  f5 {[%clk 0:00:12]} 31. Rd7+ {[%clk 0:00:41]}  Kg6 {[%clk 0:00:12]} 32. Re7 {[%clk 0:00:42]}  Qg8 {[%clk 0:00:10]} 33. h5+ {[%clk 0:00:42]}  Kxh5 {[%clk 0:00:10]} 34. Qxf5+ {[%clk 0:00:41]}  Kh6 {[%clk 0:00:11]} 35. Be3# {[%clk 0:00:42]} 1-0


[Site "https://www.chess.com"]